Cogmind - Beta 16.1 --- EXPLORER MODE // 2026.02.10 @ 09:51:31 Player: K.K.Y. Result: Destroyed by BE-E22(R) with Subdweller Machine Gun Performance ------------- Evolutions (0) 0 Regions Visited (2) 400 Robots Destroyed (42) 210 Value Destroyed (1044) 1044 Prototype IDs (13) 260 Alien Tech Used (0) 0 Bonus (0) 0 TOTAL SCORE: 1914 Bonus ------- None Cogmind --------- Core Integrity 0/250 Matter 164/300 Energy 160/160 System Corruption 0% Temperature Cool (0) Movement Treading (320) Ox2 Location -10/Subcaves Parts ------- > --- POWER (1) -------- Light Nuclear Core > --- PROPULSION (2) --- Light Treads > --- UTILITY (3) ------ Improved Heat Sink High-capacity Storage Unit Improved Terrain Scanner > --- WEAPON (2) ------- Particle Gun Barrage Gun > --- INVENTORY (20) --- Makeshift Power Source Makeshift Power Source Makeshift Leg Arachnoskeleton Improved Heat Sink Autobeam 1B-0RG's Assimilator Multitool Makeshift Spear Peak State ------------ > --- POWER ------------ Light Nuclear Core > --- PROPULSION ------- Light Treads > --- UTILITY ---------- Improved Heat Sink High-capacity Storage Unit Improved Terrain Scanner > --- WEAPON ----------- Particle Gun Barrage Gun > --- INVENTORY -------- Makeshift Power Source Makeshift Power Source Arachnoskeleton Improved Heat Sink Autobeam 1B-0RG's Assimilator Multitool Makeshift Spear [Rating: 26] Favorites ----------- Power Light Nuclear Core Engine Makeshift Power Source Power Core Light Nuclear Core Propulsion Light Treads Treads Light Treads Utility Improved Heat Sink Device Improved Heat Sink Storage High-capacity Storage Unit Weapon Barrage Gun Energy Gun Particle Gun Energy Cannon Beam Cannon Ballistic Gun Barrage Gun Ballistic Cannon Battle Cannon Special Weapon Mining Laser Build | -11 -10 -10 ------- Run | Yrd Mat Sub Slots Evolved 1 | . 1 . Power . | . . . Propulsion . | . . . Utility 1 | . 1 . Weapon . | . . . Parts Attached 22 | 6 6 10 Power 4 | 1 1 2 Engine 3 | 1 . 2 Core 1 | . 1 . Reactor . | . . . Propulsion 4 | 2 1 1 Treads 4 | 2 1 1 Leg . | . . . Wheel . | . . . Hover . | . . . Flight . | . . . Utility 6 | 1 2 3 Device 4 | . 2 2 Storage 2 | 1 . 1 Processor . | . . . Hackware . | . . . Protection . | . . . Artifact . | . . . Weapon 8 | 2 2 4 Energy Gun 1 | . . 1 Energy Cannon 2 | . 2 . Ballistic Gun 3 | 2 . 1 Ballistic Cannon 1 | . . 1 Launcher . | . . . Special Weapon 1 | . . 1 Impact Weapon . | . . . Slashing Weapon . | . . . Piercing Weapon . | . . . Special Melee Weapon . | . . . Unidentified Prototypes . | . . . Parts Lost 9 | . . 9 Power 1 | . . 1 Propulsion 2 | . . 2 Utility 2 | . . 2 Weapon 4 | . . 4 Highest Loss Streak 4 | . . 4 To Critical Strikes 2 | . . 2 Average Backups 8 | . 7 9 Power 1 | . . 2 Propulsion 1 | . 2 1 Utility 2 | . 4 1 Weapon 2 | . 1 2 Tool/Special . | . . . Unused Backups 10 | . 1 9 Power 1 | . . 1 Propulsion 4 | . 1 3 Utility 1 | . . 1 Weapon 2 | . . 2 Tool/Special 2 | . . 2 Average Slot Usage (%) 86 | . 79 87 Engine 6 | . 12 5 Core 5 | . . 6 Treads 15 | . 25 13 Device 20 | . 4 24 Storage 12 | . 12 12 Energy Gun 4 | . . 5 Energy Cannon 6 | . 3 6 Ballistic Gun 9 | . 21 7 Ballistic Cannon 2 | . . 3 Peak Build Rating 26 | 6 13 26 Average Rating 18 | 5 7 21 On Entrance 5 | . 6 11 Avg Prop Armor Cover (%) . | . . . Naked Turns . | . . . Heaviest Build 53 | 18 23 53 Greatest Support 40 | 40 40 40 Greatest Overweight (x) 2 | . . 2 Average Overweight (x) 1 | . . 1 Largest Inventory Capacity 20 | 10 10 20 Average Capacity 17 | 9 10 19 Most Carried 15 | 5 10 15 Average Carried 11 | . 7 12 Final Capacity 20 | 10 10 20 Final Carried 15 | 2 9 15 Class Distribution -------------------- 100% | Hacker-Mutant Dominant Class ---------------- Hacker-Mutant | -10/Materials Hacker-Mutant | -10/Subcaves Resources | -11 -10 -10 ----------- Run | Yrd Mat Sub Matter Collected 973 | 292 181 500 Remotely . | . . . Salvage Created 1321 | 163 644 514 Parts 87 | 16 41 30 Haulers Intercepted 2 | . 2 . Recyclers Shooed . | . . . Parts Field Recycled . | . . . Retrieved Matter . | . . . Parts Self-Destructed . | . . . Prevented . | . . . Parts Restored . | . . . Kills | -11 -10 -10 ------- Run | Yrd Mat Sub Combat Hostiles Destroyed 23 | . 9 14 Guns 14 | . 9 5 Cannons 8 | . . 8 Classes Destroyed 11 | 3 5 3 Worker 4 | 1 3 . Builder 2 | . 2 . Tunneler 5 | 5 . . Hauler 2 | . 2 . Recycler 1 | 1 . . Turret 2 | . . 2 Watcher 3 | . 3 . Swarmer 3 | . 2 1 Grunt 7 | . 7 . Artisan 1 | . . 1 Subdweller 13 | . . 13 Best Kill Streak 6 | 3 6 3 Combat Bots Only 3 | . 2 3 Max Kills in Single Turn 2 | 1 2 1 Gunslinging . | . . . Exploded . | . . . Melee . | . . . Uniques/NPCs Destroyed . | . . . Combat | -11 -10 -10 -------- Run | Yrd Mat Sub Hostile Shots Fired 152 | . 33 119 Missed 44 | . 12 32 Hits 108 | . 21 87 Projectile 108 | . 21 87 AOE 1 | . . 1 Critical Strikes 5 | . . 5 Damage Taken 1343 | . 152 1191 Core 262 | . 19 243 Absorbed by Shields . | . . . Ignored by Resistances 782 | . 99 683 Core Remaining (%) 100 | 100 . . Volleys Fired 193 | 12 47 134 Largest 2 | 2 2 2 Hottest 160 | 40 40 160 Shots Fired 375 | 24 94 257 Gun 240 | 24 94 122 Cannon 117 | . . 117 Launcher . | . . . Special 18 | . . 18 Kinetic 219 | 24 94 101 Thermal 156 | . . 156 Explosive . | . . . Electromagnetic . | . . . Robot Hit Streak 50 | 13 17 50 Robot Miss Streak 3 | 1 3 1 Penetration Max . | . . . Secondary Targets 3 | . 3 . Max Gunslinging Chain 1 | . 1 . Shots Hit Robots 189 | 19 70 100 Core Hits 77 | 9 40 28 Critical Kills 3 | 1 . 2 Critical Parts Destroyed . | . . . Critical Strikes 6 | 1 . 5 Burn 1 | . . 1 Meltdown 2 | . . 2 Destroy 1 | 1 . . Blast 2 | . . 2 Melee Attacks . | . . . Impact . | . . . Slashing . | . . . Piercing . | . . . Sneak Attacks . | . . . Combat Hostiles . | . . . Follow-up Attacks . | . . . Damage Inflicted 2553 | 211 830 1512 Guns 1384 | 211 704 469 Cannons 947 | . . 947 Explosions 126 | . 126 . Melee . | . . . Ramming . | . . . Kinetic 1450 | 211 704 535 Thermal 977 | . . 977 Explosive . | . . . Electromagnetic 126 | . 126 . Impact . | . . . Slashing . | . . . Piercing . | . . . Highest Corruption . | . . . Average Corruption . | . . . Corruption Purged . | . . . Corruption Blocked . | . . . Overload Shots . | . . . Overflow Damage 6 | . . 6 Projectiles 6 | . . 6 Explosions . | . . . Melee . | . . . Knockbacks 3 | . . 3 Impact . | . . . Kinetic 3 | . . 3 Secondary . | . . . Self-Inflicted Damage 2 | . 2 . Shots 1 | . 1 . Rammed . | . . . Targets Rammed . | . . . Kicked . | . . . Crushed . | . . . Highest Temperature 22 | . 22 . Average Temperature 9 | . 9 . Received Heat Transfer 405 | . 132 273 Siege Activations . | . . . Martial Activations . | . . . Shielding Activations . | . . . Robots Disrupted . | . . . Combat Hostiles . | . . . Robots Corrupted . | . . . Combat Hostiles . | . . . Parts Fried . | . . . Impact Corruptions . | . . . Robots Melted 2 | . . 2 Combat Hostiles 1 | . . 1 Parts Melted 2 | . . 2 Heat Transferred 2198 | . . 2198 Parts Sabotaged . | . . . Parts Stolen . | . . . Parts Stripped . | . . . Power Chain Reactions . | . . . Alert | -11 -10 -10 ------- Run | Yrd Mat Sub Maximum Alert Level . | . . . Low Security (%) 100 | 100 100 . Level 1 . | . . . Level 2 . | . . . Level 3 . | . . . Level 4 . | . . . Level 5 . | . . . High Security . | . . . Max Security . | . . . Peak Influence 76 | 10 76 . Initial . | . . . Average 8 | 2 9 . Influence Increases 453 | 35 328 90 Destroy 0b10 Robot/C 240 | . 180 60 Destroy 0b10 Robot/NC 85 | 35 50 . Destroy Leader 60 | . 60 . Successful Hack 2 | . 2 . Disable Machine 20 | . 20 . Destroy Structure 1 | . 1 . Lose Combat Pursuer 45 | . 15 30 Influence Decreases 453 | 35 328 90 Time Decay 453 | 35 328 90 Squads Dispatched 1 | . 1 . Investigation 1 | . 1 . Extermination . | . . . Reinforcement . | . . . Assault . | . . . Garrison . | . . . Intercept . | . . . Searches Triggered . | . . . Construction Impeded . | . . . Haulers Reinforced . | . . . Active Scanning Responses . | . . . Cargo Convoy Interrupts . | . . . Stealth | -11 -10 -10 --------- Run | Yrd Mat Sub Distress Signals 4 | . 4 . Communications Jammed . | . . . Distress Signals . | . . . Times Spotted 33 | . 14 19 Peak Tracking Total 3 | . 3 3 Tactical Retreats 3 | . 1 2 Traps | -11 -10 -10 ------- Run | Yrd Mat Sub Traps Triggered 1 | . . 1 Indirectly . | . . . Trap Hack Attempts . | . . . Triggered . | . . . Disarmed . | . . . Reprogrammed 2 | . 2 . Reused . | . . . Traps Extracted . | . . . Installed . | . . . Triggered . | . . . Machines | -11 -10 -10 ---------- Run | Yrd Mat Sub Machines Disabled 6 | . 5 1 Max in Single Turn 2 | . 2 1 Machines Repaired . | . . . Machines Dismantled . | . . . Machines Sabotaged . | . . . Overloaded Fab Kills . | . . . Hacking | -11 -10 -10 --------- Run | Yrd Mat Sub Machines Accessed 11 | . 9 2 Terminals 7 | . 7 . Fabricators . | . . . Repair Stations . | . . . Recycling Units 2 | . 2 . Scanalyzers . | . . . Garrison Access . | . . . Total Hacks 24 | . 18 6 Successful 20 | . 14 6 Failed 4 | . 4 . Catastrophic . | . . . Database Lockouts . | . . . Manual 12 | . 12 . Terminals 15 | . 15 . Fabricators . | . . . Repair Stations . | . . . Recycling Units 3 | . 3 . Scanalyzers . | . . . Garrison Access . | . . . Terminal Hacks 10 | . 4 6 Record 5 | . . 5 Robot Analysis 2 | . 2 . Reprogram Traps 2 | . 2 . Proto ID Catalog 1 | . . 1 Fabricator Hacks . | . . . Repair Station Hacks . | . . . Recycling Unit Hacks 2 | . 2 . Retrieve Components 2 | . 2 . Scanalyzer . | . . . Garrison Access Hacks . | . . . Unauthorized Hacks 8 | . 8 . Terminals 7 | . 7 . Botnet 7 | . 7 . Fabricators . | . . . Repair Stations . | . . . Recycling Units 1 | . 1 . Reject 1 | . 1 . Scanalyzers . | . . . Garrison Access . | . . . Data Cores Recovered . | . . . Used . | . . . Hacking Detections 3 | . 3 . Full Trace Events 2 | . 2 . Feedback Events . | . . . Feedback Blocked . | . . . Robot Schematics Acquired . | . . . Robots Built . | . . . Authchips . | . . . Time . | . . . Total Robot Build Rating . | . . . Part Schematics Acquired . | . . . Parts Built . | . . . Authchips . | . . . Time . | . . . Total Part Build Rating . | . . . Part Studies Acquired . | . . . Parts Repaired . | . . . Time . | . . . Parts Recycled . | . . . Recycled Matter . | . . . Retrieved Matter . | . . . Retrieved Components 11 | . 11 . Parts Scanalyzed . | . . . Part Schematics Acquired . | . . . Parts Damaged . | . . . Bothacking | -11 -10 -10 ------------ Run | Yrd Mat Sub Used RIF Installer . | . . . Robots Hacked . | . . . Non-combat . | . . . Combat . | . . . Robot Hacks Applied . | . . . Relay Couplers Released . | . . . Fabnet Peak Effective % . | . . . Robots Rewired . | . . . Allies Hacked . | . . . Hacks Repelled . | . . . Allies | -11 -10 -10 -------- Run | Yrd Mat Sub Total Allies . | . . . Largest Group . | . . . Highest-Rated Group . | . . . Highest-Rated Ally . | . . . Total Orders . | . . . Ally Attacks . | . . . Total Damage . | . . . Kills . | . . . Allies Corrupted . | . . . Allies Melted . | . . . Intel | -11 -10 -10 ------- Run | Yrd Mat Sub Active Infowar (turns) 6103 | . 102 6001 Sensors 756 | . 102 654 Terrain 5347 | . . 5347 Robot Analysis Total 2 | . 2 . Derelict Logs Recovered 2 | . . 2 Drone Launches . | . . . Drone Recoveries . | . . . Exploration | -11 -10 -10 ------------- Run | Yrd Mat Sub Turns Passed 7867 | 176 1301 6390 Spaces Moved 2587 | 92 689 1806 Core 16 | 16 . . Treads 2571 | 76 689 1806 Legs . | . . . Wheels . | . . . Hover . | . . . Flight . | . . . Fastest Speed 50 | 50 160 160 Average Speed 251 | 140 160 292 Slowest Speed 320 | 160 160 320 Overloaded Moves . | . . . Propulsion Burnouts . | . . . Robots Hopped . | . . . Potential Cave-ins . | . . . Cave-ins Triggered . | . . . Exploration Rate (%) 65 | 4 96 95 Regions Visited 2 Branch Regions 1 Pre-discovered Areas 1 | . . 1 Known Exits Taken 2 | 1 1 . Unknown Exits Taken . | . . . Scrap Searched 7 | . . 7 Spaces Dug . | . . . Terrain Destroyed . | . . . Melee . | . . . Projectile . | . . . AOE . | . . . Terrain Rammed . | . . . Walls Destroyed . | . . . Machines Disabled . | . . . Actions | -11 -10 -10 --------- Run | Yrd Mat Sub Total 3544 | 116 801 2627 Wait 705 | . 47 658 Move 2585 | 91 688 1806 Hop . | . . . Pick Up 27 | 7 10 10 Fast Attach 2 | 1 1 . Attach 14 | 5 1 8 Detach . | . . . Swap 12 | . 5 7 Drop 6 | . 2 4 Fire 193 | 12 47 134 Melee . | . . . Ram . | . . . Kick . | . . . Crush . | . . . Escape Stasis . | . . . Rewire . | . . . Trap . | . . . Miscellaneous . | . . . Route ------- -11/Scrapyard -10/Materials (discovered 6 exits: *Mat x3 / *Min x2 / *Sub) -10/Subcaves (discovered 3 exits: *Mat x2 / *Rec) History --------- Turn | Location | Event 6 | -11/Scrapyard | Identified exit to Materials 6 | -11/Scrapyard | Discovered exit to Materials (range 15) 177 | -11/Scrapyard | Entered Materials 177 | -10/Materials | Evolved 1 slot: Utility x1 179 | -10/Materials | Identified exit to Mines 179 | -10/Materials | Discovered exit to Mines (range 14) 311 | -10/Materials | Build established: Hacker-Mutant 339 | -10/Materials | Discovered exit to Mines (range 8) 443 | -10/Materials | Identified exit to Materials 443 | -10/Materials | Discovered exit to Materials (range 16) 586 | -10/Materials | Identified exit to Subcaves 586 | -10/Materials | Discovered exit to Subcaves (range 15) 761 | -10/Materials | Discovered exit to Materials (range 15) 976 | -10/Materials | Discovered exit to Materials (range 14) 1478 | -10/Materials | Entered Subcaves 1525 | -10/Subcaves | Identified exit to Recycling 1525 | -10/Subcaves | Discovered exit to Recycling (range 10) 1700 | -10/Subcaves | A swath of the cavern ceiling suddenly collapsed 1919 | -10/Subcaves | Identified exit to Materials 1919 | -10/Subcaves | Discovered exit to Materials (range 12) 1955 | -10/Subcaves | Disturbed a concealed Subdweller 1964 | -10/Subcaves | Disturbed a concealed Subdweller 2179 | -10/Subcaves | Lost 4 parts (1n1u2w) 2910 | -10/Subcaves | Core integrity fell below 50% 3443 | -10/Subcaves | Visited Clippyterm 3453 | -10/Subcaves | Learned location of Deep Caves (-7) 3453 | -10/Subcaves | Learned 40 Factory zone layouts 3509 | -10/Subcaves | Ambushed by Subdwellers from Twisted Machinery 3662 | -10/Subcaves | Learned Materials emergency access door positions 3996 | -10/Subcaves | Visited 4L-MR0's lab 4186 | -10/Subcaves | Found Prototype Special Melee Weapon 4200 | -10/Subcaves | Found Arachnoskeleton 4384 | -10/Subcaves | Shifting Twisted Machinery released Mak. Leg 4625 | -10/Subcaves | Core integrity fell below 20% 7761 | -10/Subcaves | Discovered exit to Materials (range 13) 7868 | -10/Subcaves | Destroyed by BE-E22(R) with Subdweller Machine Gun Last Messages --------------- 06463_ IX-QF4(u) tweaks Twisted Machinery. 06466_ IX-QF4(u) builds Twisted Machinery. 06550_ IX-QF4(u) tweaks Twisted Machinery. 06631_ IX-QF4(u) builds Twisted Machinery. 06645_ IX-QF4(u) deconstructs Twisted Machinery. 07143_ Acquired 1 matter. 07149_ Acquired 21 matter. 07737_ 7N-X3I(R) destroyed. 07740_ Subatomizers dissect the Sub. Monowheel. 07747_ BO-EVS(R) affixes Scrap Shield Fragment to Scrap Shield. 07753_ BO-EVS(R) suffers critical hit (Burn). 07755_ Subatomizers dissect the Sub. Monowheel. 07758_ Sub. Monowheel melted. 07758_ BO-EVS(R) destroyed. 07761_ Acquired 30 matter. 07761_ EXIT=FOUND: MATERIALS 07766_ Subatomizers dissect the Sub. Power Source. Map ----- +----------------------------------------------------+ | | | | | | | | | | | | | | | | | ?????????????????????????????????????????????????? | | ?????????????????????????????????????????????????? | | ?????????????????????????????????????????????????? | | ??????????????????#???????#??????????????????????? | | ????????????????????????????#????#???????????????? | | ?????????????????????????????????????????????????? | | ?????????????????????????#????#????????#?????????? | | ?????????????????????????????????????????????????? | | ?????????????????????????????????????????????????? | | ?????????????????????????????????????????????????? | | ??????????????????????????????#???#???#??????????? | | ???????????????????##???? ??????#????????????????? | | ?????????????#???????$?? ???????#???#????????????? | | ??????????????????????